Cogmind - Beta 12 @@@ ROGUE MODE // 2024.02.11 @ 16:25:52 Player: Qhaecretes Result: Destroyed by Y-64 Sentinel with KE Penetrator Performance ------------- Evolutions (1) 500 Regions Visited (5) 1000 Robots Destroyed (19) 95 Value Destroyed (474) 474 Prototype IDs (2) 40 Alien Tech Used (0) 0 Bonus (600) 600 TOTAL SCORE: 2709 Bonus ------- Met Imprinter 300 Was Imprinted 300 Cogmind --------- Core Integrity 0/400 Matter 288/300 Energy 97/100 System Corruption 0% Temperature Cool (2) Movement Hovering (56) Location -6/Proximity Caves Parts ------- > --- POWER (2) -------- (None) > --- PROPULSION (2) --- Hover Unit Hover Unit > --- UTILITY (3) ------ Targeting Computer > --- WEAPON (2) ------- (None) > --- INVENTORY (5) ---- Signal Interpreter Targeting Computer Peak State ------------ > --- POWER ------------ Light Angular Momentum Engine Neutrino Core > --- PROPULSION ------- Carbon-fiber Leg Flexi-carbon Leg > --- UTILITY ---------- Compact Battery Targeting Computer Hardened Light Armor Plating > --- WEAPON ----------- Gauss Rifle Ripper > --- INVENTORY -------- Hover Unit Hover Unit Signal Interpreter Targeting Computer Medium Laser [Rating: 33] Favorites ----------- Power Light Nuclear Core Engine Ion Engine Power Core Light Nuclear Core Propulsion Flight Unit Leg Flexi-carbon Leg Wheel Wheel Hover Unit Hover Unit Flight Unit Flight Unit Utility Targeting Computer Device Seismic Detector Storage Medium Storage Unit Processor Targeting Computer Protection Hardened Light Armor Plating Weapon Medium Laser Energy Gun Medium Laser Ballistic Gun Gauss Rifle Slashing Weapon Ripper Build | -11 -10 -9 -9 -7 -6 ------- Run | Jun Mat Mat Min Zio Pro Slots Evolved 2 | . . 2 . . . Power 1 | . . 1 . . . Propulsion . | . . . . . . Utility 1 | . . 1 . . . Weapon . | . . . . . . Parts Attached 42 | 8 7 7 3 . 17 Power 8 | 1 1 1 1 . 4 Engine 4 | 1 . 1 . . 2 Core 4 | . 1 . 1 . 2 Reactor . | . . . . . . Propulsion 10 | 2 . 2 1 . 5 Treads . | . . . . . . Leg 2 | . . . . . 2 Wheel 2 | 2 . . . . . Hover 2 | . . . . . 2 Flight 4 | . . 2 1 . 1 Utility 9 | 3 3 . 1 . 2 Device 2 | 2 . . . . . Storage 4 | 1 2 . . . 1 Processor 1 | . 1 . . . . Hackware . | . . . . . . Protection 2 | . . . 1 . 1 Artifact . | . . . . . . Weapon 15 | 2 3 4 . . 6 Energy Gun 11 | 1 3 4 . . 3 Energy Cannon . | . . . . . . Ballistic Gun 2 | 1 . . . . 1 Ballistic Cannon . | . . . . . . Launcher . | . . . . . . Special Weapon . | . . . . . . Impact Weapon . | . . . . . . Slashing Weapon 2 | . . . . . 2 Piercing Weapon . | . . . . . . Special Melee Weapon . | . . . . . . Unidentified Prototypes . | . . . . . . Parts Lost 20 | . 2 4 1 . 13 Power 4 | . . 1 1 . 2 Propulsion 7 | . . 2 . . 5 Utility 3 | . 1 . . . 2 Weapon 6 | . 1 1 . . 4 Highest Loss Streak 7 | . 2 4 1 . 7 To Critical Strikes . | . . . . . . Average Slot Usage (%) 66 | . 91 63 55 55 63 Engine 1 | . 3 5 4 . . Core 8 | . 10 3 6 11 9 Leg 2 | . . . . . 6 Wheel 6 | . 28 7 . . . Flight 9 | . . 4 22 22 7 Storage 6 | . 14 10 . . 5 Processor 9 | . 5 11 11 11 11 Protection 2 | . . . . . 6 Energy Gun 12 | . 16 21 11 11 9 Ballistic Gun 4 | . 8 . . . 6 Naked Turns . | . . . . . . Heaviest Build 52 | 14 52 19 8 8 27 Greatest Support 35 | 20 20 20 8 8 35 Greatest Overweight (x) 6 | . 2 6 . . 3 Average Overweight (x) . | . . . . . . Largest Inventory Capacity 20 | 8 20 10 5 5 5 Average Capacity 6 | 6 9 9 5 5 5 Most Carried 9 | . 8 9 5 5 5 Average Carried 4 | . 3 7 4 5 3 Final Capacity 10 | 8 10 5 5 5 5 Final Carried 8 | . 8 5 5 5 2 Class Distribution -------------------- 81% | Mutant 18% | Scavenger-Mutant Dominant Class ---------------- Mutant | -10/Materials Mutant | -9/Materials Mutant | -9/Mines Mutant | -7/Zion Mutant | -6/Proximity Caves Resources | -11 -10 -9 -9 -7 -6 ----------- Run | Jun Mat Mat Min Zio Pro Matter Collected 677 | 158 89 34 67 . 329 Remotely . | . . . . . . Salvage Created 697 | 27 251 74 73 . 272 Parts 30 | 3 10 3 5 . 9 Haulers Intercepted 1 | . 1 . . . . Recyclers Shooed . | . . . . . . Parts Field Recycled . | . . . . . . Retrieved Matter . | . . . . . . Parts Self-Destructed 4 | . . . . . 4 Prevented . | . . . . . . Kills | -11 -10 -9 -9 -7 -6 ------- Run | Jun Mat Mat Min Zio Pro Combat Hostiles Destroyed 15 | . 4 3 2 . 6 Guns 14 | . 4 3 2 . 5 Classes Destroyed 8 | 1 3 2 . . 2 Tunneler 1 | 1 . . . . . Hauler 1 | . 1 . . . . Operator 1 | . . 1 . . . Drone 2 | . . . . . 2 Watcher 1 | . 1 . . . . Swarmer 5 | . . 2 . . 3 Grunt 7 | . 4 1 2 . . Hunter 1 | . . . . . 1 Best Kill Streak 2 | 1 2 2 2 . 2 Combat Bots Only 2 | . 2 2 2 . 2 Max Kills in Single Turn 1 | 1 1 1 1 . 1 Gunslinging . | . . . . . . Exploded . | . . . . . . Melee . | . . . . . . Uniques/NPCs Destroyed . | . . . . . . Combat | -11 -10 -9 -9 -7 -6 -------- Run | Jun Mat Mat Min Zio Pro Damage Taken 1819 | . 351 353 179 . 936 Core 508 | . 102 110 57 . 239 Absorbed by Shields . | . . . . . . Core Remaining (%) 79 | 100 59 . . . . Volleys Fired 111 | 2 36 22 8 . 43 Largest 2 | 2 2 2 1 . 2 Hottest 100 | 60 100 100 56 . 78 Shots Fired 172 | 4 57 43 8 . 60 Gun 172 | 4 57 43 8 . 60 Cannon . | . . . . . . Launcher . | . . . . . . Special . | . . . . . . Kinetic 67 | 2 31 . . . 34 Thermal 96 | . 19 43 8 . 26 Explosive . | . . . . . . Electromagnetic 9 | 2 7 . . . . Robot Hit Streak 13 | 2 8 11 13 . 7 Robot Miss Streak 5 | 1 5 4 . . 5 Penetration Max . | . . . . . . Secondary Targets 1 | . . 1 . . . Max Gunslinging Chain 1 | . . 1 . . . Shots Hit Robots 103 | 2 35 28 8 . 30 Core Hits 38 | 2 13 9 4 . 10 Critical Kills . | . . . . . . Critical Parts Destroyed . | . . . . . . Critical Strikes 6 | . . 4 . . 2 Burn 6 | . . 4 . . 2 Melee Attacks 2 | . . . . . 2 Impact . | . . . . . . Slashing 2 | . . . . . 2 Piercing . | . . . . . . Sneak Attacks . | . . . . . . Combat Hostiles . | . . . . . . Follow-up Attacks . | . . . . . . Damage Inflicted 1446 | 21 366 339 117 . 603 Guns 1312 | 21 366 339 117 . 469 Cannons . | . . . . . . Explosions . | . . . . . . Melee 134 | . . . . . 134 Ramming . | . . . . . . Kinetic 454 | 6 170 . . . 278 Thermal 803 | . 156 339 117 . 191 Explosive . | . . . . . . Electromagnetic 55 | 15 40 . . . . Impact . | . . . . . . Slashing 134 | . . . . . 134 Piercing . | . . . . . . Highest Corruption . | . . . . . . Average Corruption . | . . . . . . Corruption Purged . | . . . . . . Corruption Blocked . | . . . . . . Overload Shots . | . . . . . . Overflow Damage 45 | . . . . . 45 Projectiles . | . . . . . . Explosions . | . . . . . . Melee 45 | . . . . . 45 Knockbacks . | . . . . . . Impact . | . . . . . . Kinetic . | . . . . . . Secondary . | . . . . . . Self-Inflicted Damage . | . . . . . . Shots . | . . . . . . Rammed . | . . . . . . Targets Rammed . | . . . . . . Kicked . | . . . . . . Crushed . | . . . . . . Highest Temperature 330 | 20 135 288 145 . 330 Average Temperature 112 | 15 53 133 80 . 151 Received Heat Transfer 429 | . 198 132 99 . . Effects 2 | . . 1 . . 1 Energy Bleed 1 | . . 1 . . . Interference 1 | . . . . . 1 Siege Activations . | . . . . . . Robots Corrupted . | . . . . . . Combat Hostiles . | . . . . . . Parts Fried . | . . . . . . Impact Corruptions . | . . . . . . Robots Melted 2 | . 1 . . . 1 Combat Hostiles 1 | . . . . . 1 Parts Melted 7 | . 2 1 1 . 3 Heat Transferred 2703 | . 409 1295 296 . 703 Parts Sabotaged . | . . . . . . Parts Stolen . | . . . . . . Parts Stripped . | . . . . . . Power Chain Reactions . | . . . . . . Missiles Intercepted . | . . . . . . Alert | -11 -10 -9 -9 -7 -6 ------- Run | Jun Mat Mat Min Zio Pro Peak Influence 145 | 5 145 136 113 . . Initial 61 | . 3 61 58 . . Average 82 | 1 92 93 99 . . Maximum Alert Level . | . . . . . . Low Security (%) 100 | 100 100 100 100 . . Level 1 . | . . . . . . Level 2 . | . . . . . . Level 3 . | . . . . . . Level 4 . | . . . . . . Level 5 . | . . . . . . High Security . | . . . . . . Max Security . | . . . . . . Squads Dispatched 1 | . . 1 . . . Investigation . | . . . . . . Extermination . | . . . . . . Reinforcement 1 | . . 1 . . . Assault . | . . . . . . Garrison . | . . . . . . Intercept . | . . . . . . Searches Triggered . | . . . . . . Construction Impeded . | . . . . . . Haulers Reinforced . | . . . . . . Active Scanning Responses . | . . . . . . Cargo Convoy Interrupts . | . . . . . . Stealth | -11 -10 -9 -9 -7 -6 --------- Run | Jun Mat Mat Min Zio Pro Distress Signals . | . . . . . . Communications Jammed . | . . . . . . Distress Signals . | . . . . . . Times Spotted 35 | . 7 10 6 . 12 Peak Tracking Total 6 | . 2 6 6 . 4 Tactical Retreats 3 | . 1 1 . . 1 Traps | -11 -10 -9 -9 -7 -6 ------- Run | Jun Mat Mat Min Zio Pro Traps Triggered . | . . . . . . Indirectly . | . . . . . . Trap Hack Attempts . | . . . . . . Triggered . | . . . . . . Disarmed 6 | . 6 . . . . Reprogrammed . | . . . . . . Reused . | . . . . . . Traps Extracted . | . . . . . . Installed . | . . . . . . Triggered . | . . . . . . Machines | -11 -10 -9 -9 -7 -6 ---------- Run | Jun Mat Mat Min Zio Pro Machines Disabled . | . . . . . . Max in Single Turn . | . . . . . . Machines Repaired . | . . . . . . Machines Sabotaged . | . . . . . . Overloaded Fab Kills . | . . . . . . Hacking | -11 -10 -9 -9 -7 -6 --------- Run | Jun Mat Mat Min Zio Pro Machines Accessed 5 | . 3 1 . 1 . Terminals 4 | . 3 1 . . . Fabricators . | . . . . . . Repair Stations . | . . . . . . Recycling Units . | . . . . . . Scanalyzers . | . . . . . . Garrison Access . | . . . . . . Total Hacks 20 | . 7 4 . 9 . Successful 17 | . 6 2 . 9 . Failed 3 | . 1 2 . . . Catastrophic . | . . . . . . Database Lockouts . | . . . . . . Manual 8 | . . . . 8 . Terminals 11 | . 7 4 . . . Fabricators . | . . . . . . Repair Stations . | . . . . . . Recycling Units . | . . . . . . Scanalyzers . | . . . . . . Garrison Access . | . . . . . . Terminal Hacks 17 | . 6 2 . 9 . Record 3 | . 2 1 . . . Part Schematic 9 | . . . . 9 . Prototype ID Bank 1 | . 1 . . . . Locate Traps 1 | . 1 . . . . Disarm Traps 1 | . 1 . . . . Dispatch Records 1 | . 1 . . . . Zone Layout 1 | . . 1 . . . Fabricator Hacks . | . . . . . . Repair Station Hacks . | . . . . . . Recycling Unit Hacks . | . . . . . . Scanalyzer . | . . . . . . Garrison Access Hacks . | . . . . . . Unauthorized Hacks . | . . . . . . Terminals . | . . . . . . Fabricators . | . . . . . . Repair Stations . | . . . . . . Recycling Units . | . . . . . . Scanalyzers . | . . . . . . Garrison Access . | . . . . . . Data Cores Recovered . | . . . . . . Used . | . . . . . . Hacking Detections 1 | . 1 . . . . Full Trace Events . | . . . . . . Feedback Events . | . . . . . . Feedback Blocked . | . . . . . . Robot Schematics Acquired 3 | . . . . 3 . Robots Built . | . . . . . . Authchips . | . . . . . . Time . | . . . . . . Total Robot Build Rating . | . . . . . . Part Schematics Acquired 24 | . . . . 24 . Parts Built . | . . . . . . Authchips . | . . . . . . Time . | . . . . . . Total Part Build Rating . | . . . . . . Parts Repaired . | . . . . . . Time . | . . . . . . Parts Recycled . | . . . . . . Recycled Matter . | . . . . . . Retrieved Matter . | . . . . . . Retrieved Components . | . . . . . . Parts Scanalyzed . | . . . . . . Part Schematics Acquired . | . . . . . . Parts Damaged . | . . . . . . Bothacking | -11 -10 -9 -9 -7 -6 ------------ Run | Jun Mat Mat Min Zio Pro Used RIF Installer . | . . . . . . Robots Hacked . | . . . . . . Non-combat . | . . . . . . Combat . | . . . . . . Robot Hacks Applied . | . . . . . . Relay Couplers Released . | . . . . . . Fabnet Peak Effective % . | . . . . . . Robots Rewired . | . . . . . . Allies Hacked . | . . . . . . Hacks Repelled . | . . . . . . Allies | -11 -10 -9 -9 -7 -6 -------- Run | Jun Mat Mat Min Zio Pro Total Allies 4 | . . . . 4 . Largest Group 4 | . . . . 4 . Highest-Rated Group 154 | . . . . 154 . Highest-Rated Ally 41 | . . . . 41 . Total Orders . | . . . . . . Ally Attacks . | . . . . . . Total Damage . | . . . . . . Kills . | . . . . . . Allies Corrupted . | . . . . . . Allies Melted . | . . . . . . Intel | -11 -10 -9 -9 -7 -6 ------- Run | Jun Mat Mat Min Zio Pro Robot Analysis Total . | . . . . . . Derelict Logs Recovered 2 | . . . . 2 . Drone Launches . | . . . . . . Drone Recoveries . | . . . . . . Exploration | -11 -10 -9 -9 -7 -6 ------------- Run | Jun Mat Mat Min Zio Pro Turns Passed 1681 | 76 328 190 47 379 661 Spaces Moved 1589 | 39 232 97 69 605 547 Core 17 | 1 . 11 . . 5 Treads . | . . . . . . Legs 151 | . . . . . 151 Wheels 338 | 38 232 68 . . . Hover 48 | . . . . . 48 Flight 1035 | . . 18 69 605 343 Fastest Speed 37 | 50 80 37 37 37 37 Average Speed 61 | 79 81 106 37 37 75 Slowest Speed 360 | 80 110 360 37 37 200 Overloaded Moves . | . . . . . . Propulsion Burnouts . | . . . . . . Robots Hopped . | . . . . . . Cave-ins Triggered . | . . . . . . Exploration Rate (%) 32 | 4 38 14 24 72 43 Regions Visited 5 Branch Regions 3 Pre-discovered Areas 3 | . . . . 3 . Known Exits Taken . | . . . . . . Unknown Exits Taken 5 | 1 1 1 1 1 . Scrap Searched 1 | . . . 1 . . Spaces Dug . | . . . . . . Terrain Destroyed . | . . . . . . Melee . | . . . . . . Projectile . | . . . . . . AOE . | . . . . . . Terrain Rammed . | . . . . . . Walls Destroyed . | . . . . . . Machines Disabled . | . . . . . . Actions | -11 -10 -9 -9 -7 -6 --------- Run | Jun Mat Mat Min Zio Pro Total 2104 | 76 317 141 81 759 730 Wait 333 | 27 31 6 . 155 114 Move 1584 | 38 231 96 68 604 547 Hop . | . . . . . . Pick Up 16 | . 10 3 . . 3 Fast Attach 21 | 8 1 2 2 . 8 Attach 11 | . 2 2 . . 7 Detach 3 | . . 1 1 . 1 Swap 10 | . 4 3 1 . 2 Drop 13 | 1 2 6 1 . 3 Fire 111 | 2 36 22 8 . 43 Melee 2 | . . . . . 2 Ram . | . . . . . . Kick . | . . . . . . Crush . | . . . . . . Escape Stasis . | . . . . . . Rewire . | . . . . . . Trap . | . . . . . . Miscellaneous . | . . . . . . Route ------- -11/Junkyard -10/Materials -9/Materials -9/Mines (discovered 2 exits: [*Mat] / *Zio) -7/Zion -6/Proximity Caves History --------- Turn | Location | Event 62 | -11/Junkyard | Discovered new exit (range 16) 77 | -11/Junkyard | Entered Materials 302 | -10/Materials | Build established: Mutant 361 | -10/Materials | Discovered new exit (range 9) 405 | -10/Materials | Entered another Materials area 405 | -9/Materials | Evolved 2 slots: Power x1, Utility x1 518 | -9/Materials | Lost 4 parts (1p2n1w) 547 | -9/Materials | Discovered new exit (range 15) 595 | -9/Materials | Entered Mines 626 | -9/Mines | Discovered new exit (range 15) 629 | -9/Mines | A Derelict revealed a hidden shortcut to a safe place 633 | -9/Mines | Assembled infested the area 642 | -9/Mines | Entered Zion 693 | -7/Zion | Learned location of Recycling (-7) 714 | -7/Zion | Learned Factory garrison access intel 762 | -7/Zion | Imprinted 764 | -7/Zion | Declared Zion's savior 946 | -7/Zion | Learned location of Warlord (-4) 947 | -7/Zion | Learned location of Quarantine (-2) 993 | -7/Zion | Received a visual enhancement algorithm 1016 | -7/Zion | Discovered new exit (range 15) 1021 | -7/Zion | Entered Proximity Caves 1196 | -6/Proximity Caves | Spotter reported a threat 1218 | -6/Proximity Caves | Core integrity fell below 50% 1287 | -6/Proximity Caves | Lost 5 parts (1p3n1w) 1422 | -6/Proximity Caves | Spotter reported a threat 1616 | -6/Proximity Caves | Build established: Scavenger-Mutant 1623 | -6/Proximity Caves | Core integrity fell below 20% 1682 | -6/Proximity Caves | Destroyed by Y-64 Sentinel with KE Penetrator Last Messages --------------- Flexi-carbon Leg destroyed. Slug penetrates S-27 Virus. Neutrino Core destroyed. Slug penetrates Wall. Med. Laser destroyed. Com. Battery destroyed. Slug penetrates Wall. Slug penetrates S-27 Virus. Destroyed Lgt. Nuclear Core. Hrd. Light Armor Plating destroyed. Acquired 28 matter. Ripper destroyed. Slug penetrates S-27 Virus. S-27 Virus destroyed. Acquired 20 matter. Slug penetrates Wall. Gauss Rifle destroyed. Acquired 29 matter. Acquired 47 matter. Penetrated by Slug. Map ----- +----------------------------------------------------+ | ## % ##???????????????????????????? | | ?## #### #???????????????????????????? | | ??# ##?##% #???????????????????????????? | | ??## #?## ##??????????????????????????? | | ???###### #??????????????????????????? | | ??????# #??????????????????????????? | | ??????## ##??????????????????????????? | | ???????###* ##???????????????????????????? | | ?????????## ###????????????????????????????? | | ?????####### ####???????????????????????????? | | ????## ##??? ??????????????????????? | | ???## ### ??????????????????????? | | ???# * ! ????????????????????? | | ???# % # #??????????????????????? | | ???# ##! "##??????????????????????? | | ???## ## "%#???????????????????????? | | ????##### ## ??????????????????????? | | ???????# ###??? ???????????????????? | | ???????# #### ???????????????????? | | ???????## ### ??????????????????? | | ????????###### ???????????????????? | | ????????????# ####### ?????????????????????? | | ????????????# ####????????????????????????? | | ????????????## ####?????????????????????? | | ?????????????### #?????????????????????? | | ??????########## ###@ #?????????????????????? | | ??????# #?# #?????????????????????? | | ??????# #?# #?????????????????????? | | ?????## ########## #?# #?????????????????????? | | ????## ####?????# #?# #?????????????????????? | | ????# #?????# ###? ?????????????????????? | | ????## ####### #??? ?????????????????????? | | ?????# #??? ????????????????????? | | ?????## ## #???# ????????????????????? | | ??????###############???? # Y????????????????????? | | ????????????????????????? ?## ???????????????????? | | ????????????????????????? ??? ???????????????????? | | ????????????????????????? ??? ???????????????????? | | ????????????????????????? ????s??????????????????? | | ????????????????????????? ???????????????????????? | | ????????????????????????? ???????????????????????? | | ?????????????????????????????????????????????????? | | ?????????????????????????????????????????????????? | | ?????????????????????????????????????????????????? | | ?????????????????????????????????????????????????? | | ?????????????????????????????????????????????????? | | ?????????????????????????????????????????????????? | | ?????????????????????????????????????????????????? | | ?????????????????????????????????????????????????? | | ?????????????????????????????????????????????????? | +----------------------------------------------------+ Best States ------------- Heat Dissipation 28 Energy Generation 19 Energy Capacity 515 Matter Stores 300 Matter Capacity 300 Sight Range 16 Terrain Scan Density 10 Armor Coverage 150 Evasion (%) 62 Targeting Accuracy 5 Item Schematics ----------------- Riot Gun | -7/Zion | Free Hvy. Riot Gun | -7/Zion | Free Battle Rifle | -7/Zion | Free Barrage Gun | -7/Zion | Free Hvy. Battle Rifle | -7/Zion | Free Slug Cannon | -7/Zion | Free Bore Cannon | -7/Zion | Free Flamer | -7/Zion | Free Phasing Sabre | -7/Zion | Free Adv. Terrain Scanner | -7/Zion | Archive Hrd. Heavy Armor Plating | -7/Zion | Archive Hyp. Gauss Cannon | -7/Zion | Archive Mass Driver | -7/Zion | Archive Kinecellerator | -7/Zion | Archive Lgt. Fission Core | -7/Zion | Archive Coil Gun | -7/Zion | Archive Gauss Cannon | -7/Zion | Archive Weapon Cycler | -7/Zion | Archive Arm. Leg | -7/Zion | Archive Imp. Salvage Targeting Computer | -7/Zion | Archive Imp. Proton Missile Launcher | -7/Zion | Archive Corruption Screen | -7/Zion | Archive Lightning Gun | -7/Zion | Archive Lgt. Angular Momentum Engine | -7/Zion | Archive Robot Schematics ------------------ K-01 Serf | -7/Zion | Archive R-06 Scavenger | -7/Zion | Archive S-27 Virus | -7/Zion | Archive Fabricated ------------ Nothing Alien Tech Used ----------------- None Achievements -------------- None Challenges ------------ None Game ------ Seed MiningCooledCompactor Manual? 0 Play Time 00:26:39 Cumulative 25.0 hours Start 2023.12.03 @ 15:47:00 End 2024.02.11 @ 16:25:52 Sessions 2 Manual Loads 0 Difficulty Rogue Special Mode None Game No. 44 Rogue 44 Adventurer 0 Explorer 0 Win Type - Total 0 Types 0/0/0/0/0/0/0/0/0 Lore% 12 Gallery% 32 Achievement% 20 Wizard Run 0 Options --------- ASCII 0 Keyboard 0 Movement Mouse Keybinds 0 Fullscreen 1 Font 18/SmallcapsGlow Map View 76x50 Tactical HUD 0 Map Filters NONE Filters NONE Steam 1 RUN: 3758817e-fe83-46b0-b6bf-d367db3ed508